Cogmind - Beta 14 @@@ ROGUE MODE // 2024.08.19 @ 21:37:21 Player: H3-RMN Result: Destroyed by VZ-EDL(R) with Subdweller Shrapnel Launcher Performance ------------- Evolutions (0) 0 Regions Visited (2) 400 Robots Destroyed (29) 145 Value Destroyed (749) 749 Prototype IDs (13) 260 Alien Tech Used (0) 0 Bonus (0) 0 TOTAL SCORE: 1554 Bonus ------- None Cogmind --------- Core Integrity 0/250 Matter 284/300 Energy 199/200 System Corruption 0% Temperature Cool (0) Movement Rolling (150) Ox4 Location -10/Subcaves Parts ------- > --- POWER (1) -------- Subdweller Power Source > --- PROPULSION (2) --- Spiked Treads Subdweller Monowheel > --- UTILITY (2) ------ Huge Storage Unit Makeshift Light Armor Plating > --- WEAPON (2) ------- Barrage Gun Slug Cannon > --- INVENTORY (25) --- Subdweller Power Source Light Treads Light Treads Spiked Treads Spiked Treads Compact Wheel Compact Wheel Medium Matter Pod (15) Structural Scanner Improved Terrain Scanner Targeting Computer Scrap Shield Power Bank Subdweller Laser Battle Rifle Battle Rifle Subdweller Machine Gun Battle Cannon Grenade Launcher Mini Grenade Launcher Mini Grenade Launcher Subdweller Shrapnel Launcher Datajack Peak State ------------ > --- POWER ------------ Subdweller Power Source > --- PROPULSION ------- Spiked Treads Subdweller Monowheel > --- UTILITY ---------- Huge Storage Unit Makeshift Light Armor Plating > --- WEAPON ----------- Barrage Gun Slug Cannon > --- INVENTORY -------- Subdweller Power Source Light Treads Light Treads Spiked Treads Spiked Treads Wheel Compact Wheel Compact Wheel Subdweller Monowheel Medium Matter Pod Structural Scanner Improved Terrain Scanner Targeting Computer Scrap Shield Subdweller Laser Battle Rifle Battle Rifle Subdweller Machine Gun Battle Cannon Grenade Launcher Mini Grenade Launcher Mini Grenade Launcher Subdweller Shrapnel Launcher Datajack [Rating: 22] Favorites ----------- Power Ion Engine Engine Ion Engine Propulsion Light Treads Treads Light Treads Wheel Wheel Utility Huge Storage Unit Device Structural Scanner Storage Huge Storage Unit Protection Makeshift Light Armor Plating Weapon Light Assault Rifle Energy Gun Small Laser Ballistic Gun Light Assault Rifle Ballistic Cannon Light Cannon Launcher Grenade Launcher Build | -11 -10 -10 ------- Run | Yrd Mat Sub Slots Evolved . | . . . Power . | . . . Propulsion . | . . . Utility . | . . . Weapon . | . . . Parts Attached 35 | 7 13 15 Power 6 | 1 1 4 Engine 6 | 1 1 4 Core . | . . . Reactor . | . . . Propulsion 9 | 2 3 4 Treads 5 | 2 2 1 Leg . | . . . Wheel 4 | . 1 3 Hover . | . . . Flight . | . . . Utility 7 | 2 3 2 Device 3 | 1 1 1 Storage 3 | 1 2 . Processor . | . . . Hackware . | . . . Protection 1 | . . 1 Artifact . | . . . Weapon 13 | 2 6 5 Energy Gun 1 | 1 . . Energy Cannon . | . . . Ballistic Gun 6 | 1 1 4 Ballistic Cannon 4 | . 3 1 Launcher 2 | . 2 . Special Weapon . | . . . Impact Weapon . | . . . Slashing Weapon . | . . . Piercing Weapon . | . . . Special Melee Weapon . | . . . Unidentified Prototypes . | . . . Parts Lost 3 | . . 3 Power 1 | . . 1 Propulsion . | . . . Utility . | . . . Weapon 2 | . . 2 Highest Loss Streak 3 | . . 3 To Critical Strikes . | . . . Average Slot Usage (%) 99 | . 99 99 Engine 13 | . 14 13 Treads 14 | . 14 14 Wheel 13 | . 13 13 Device 8 | . 14 1 Storage 13 | . 13 14 Protection 5 | . . 12 Ballistic Gun 14 | . 13 14 Ballistic Cannon 13 | . 13 13 Peak Build Rating 22 | 9 10 22 Average Rating 14 | 5 9 20 On Entrance 6 | . 9 10 Naked Turns . | . . . Heaviest Build 99 | 13 90 99 Greatest Support 40 | 40 40 40 Greatest Overweight (x) 8 | . 8 4 Average Overweight (x) 5 | . 7 3 Largest Inventory Capacity 25 | 8 25 25 Average Capacity 24 | 7 24 25 Most Carried 25 | 8 25 25 Average Carried 22 | 3 21 24 Final Capacity 25 | 8 25 25 Final Carried 25 | 8 25 24 Class Distribution -------------------- 59% | Mutant 40% | Derelict-Mutant Dominant Class ---------------- Mutant | -10/Materials Derelict-Mutant | -10/Subcaves Resources | -11 -10 -10 ----------- Run | Yrd Mat Sub Matter Collected 1265 | 269 427 569 Remotely . | . . . Salvage Created 841 | 85 475 281 Parts 68 | 6 37 25 Haulers Intercepted 2 | . 2 . Recyclers Shooed 3 | . 3 . Parts Field Recycled . | . . . Retrieved Matter . | . . . Parts Self-Destructed 5 | . . 5 Prevented . | . . . Kills | -11 -10 -10 ------- Run | Yrd Mat Sub Combat Hostiles Destroyed 21 | . 13 8 Guns 9 | . 4 5 Cannons 8 | . 5 3 AOE 4 | . 4 . Classes Destroyed 8 | 2 5 1 Tunneler 1 | 1 . . Hauler 2 | . 2 . Recycler 2 | 1 1 . Operator 1 | . 1 . Watcher 2 | . 2 . Swarmer 5 | . 5 . Grunt 8 | . 8 . Subdweller 8 | . . 8 Best Kill Streak 4 | 2 4 2 Combat Bots Only 4 | . 4 2 Max Kills in Single Turn 2 | 1 2 1 Gunslinging . | . . . Exploded 2 | . 2 . Melee . | . . . Uniques/NPCs Destroyed . | . . . Combat | -11 -10 -10 -------- Run | Yrd Mat Sub Hostile Shots Fired 106 | . 63 43 Missed 33 | . 21 12 Damage Taken 1203 | . 486 717 Core 269 | . 99 170 Absorbed by Shields . | . . . Regen/Repaired (Parts) 383 | . 383 . Core Remaining (%) 100 | 100 . . Volleys Fired 100 | 3 60 37 Largest 2 | 2 2 2 Hottest 76 | 60 55 76 Shots Fired 191 | 6 115 70 Gun 104 | 6 55 43 Cannon 82 | . 55 27 Launcher 5 | . 5 . Special . | . . . Kinetic 183 | 3 110 70 Thermal 3 | 3 . . Explosive 5 | . 5 . Electromagnetic . | . . . Robot Hit Streak 9 | 2 8 9 Robot Miss Streak 4 | 1 4 2 Penetration Max . | . . . Secondary Targets 1 | . . 1 Max Gunslinging Chain 1 | . . 1 Shots Hit Robots 122 | 3 74 45 Core Hits 53 | 3 31 19 Critical Kills 1 | . . 1 Critical Parts Destroyed 1 | . 1 . Critical Strikes 6 | . 4 2 Destroy 3 | . 1 2 Blast 3 | . 3 . Melee Attacks . | . . . Impact . | . . . Slashing . | . . . Piercing . | . . . Sneak Attacks . | . . . Combat Hostiles . | . . . Follow-up Attacks . | . . . Damage Inflicted 1981 | 41 1292 648 Guns 752 | 41 332 379 Cannons 851 | . 582 269 Explosions 378 | . 378 . Melee . | . . . Ramming . | . . . Kinetic 1570 | 8 914 648 Thermal 33 | 33 . . Explosive 378 | . 378 . Electromagnetic . | . . . Impact . | . . . Slashing . | . . . Piercing . | . . . Highest Corruption . | . . . Average Corruption . | . . . Corruption Purged . | . . . Corruption Blocked . | . . . Overload Shots . | . . . Overflow Damage 27 | . 27 . Projectiles 18 | . 18 . Explosions 9 | . 9 . Melee . | . . . Knockbacks 13 | . 9 4 Impact . | . . . Kinetic 13 | . 9 4 Secondary . | . . . Self-Inflicted Damage 24 | . 24 . Shots 1 | . 1 . Rammed . | . . . Targets Rammed . | . . . Kicked . | . . . Crushed . | . . . Highest Temperature 448 | 20 52 448 Average Temperature 53 | 11 19 268 Received Heat Transfer 828 | . 186 642 Siege Activations . | . . . Robots Corrupted . | . . . Combat Hostiles . | . . . Parts Fried . | . . . Impact Corruptions . | . . . Robots Melted . | . . . Combat Hostiles . | . . . Parts Melted . | . . . Heat Transferred 75 | 75 . . Parts Sabotaged . | . . . Parts Stolen . | . . . Parts Stripped . | . . . Power Chain Reactions . | . . . Alert | -11 -10 -10 ------- Run | Yrd Mat Sub Peak Influence 171 | 10 171 . Initial 6 | . 6 . Average 90 | 3 95 . Maximum Alert Level . | . . . Low Security (%) 100 | 100 100 . Level 1 . | . . . Level 2 . | . . . Level 3 . | . . . Level 4 . | . . . Level 5 . | . . . High Security . | . . . Max Security . | . . . Squads Dispatched 3 | . 3 . Investigation 2 | . 2 . Extermination . | . . . Reinforcement 1 | . 1 . Assault . | . . . Garrison . | . . . Intercept . | . . . Searches Triggered . | . . . Construction Impeded . | . . . Haulers Reinforced . | . . . Active Scanning Responses . | . . . Cargo Convoy Interrupts . | . . . Stealth | -11 -10 -10 --------- Run | Yrd Mat Sub Distress Signals 1 | . 1 . Communications Jammed . | . . . Distress Signals . | . . . Times Spotted 37 | . 28 9 Peak Tracking Total 5 | . 5 2 Tactical Retreats 5 | . 5 . Traps | -11 -10 -10 ------- Run | Yrd Mat Sub Traps Triggered 2 | . 1 1 Indirectly . | . . . Trap Hack Attempts . | . . . Triggered . | . . . Disarmed . | . . . Reprogrammed . | . . . Reused . | . . . Traps Extracted . | . . . Installed . | . . . Triggered . | . . . Machines | -11 -10 -10 ---------- Run | Yrd Mat Sub Machines Disabled 2 | . 1 1 Max in Single Turn 1 | . 1 1 Machines Repaired . | . . . Machines Dismantled . | . . . Machines Sabotaged . | . . . Overloaded Fab Kills . | . . . Hacking | -11 -10 -10 --------- Run | Yrd Mat Sub Machines Accessed 12 | . 10 2 Terminals 7 | . 7 . Fabricators . | . . . Repair Stations 1 | . 1 . Recycling Units 2 | . 2 . Scanalyzers . | . . . Garrison Access . | . . . Total Hacks 39 | . 34 5 Successful 19 | . 14 5 Failed 20 | . 20 . Catastrophic 4 | . 4 . Database Lockouts . | . . . Manual 23 | . 23 . Terminals 23 | . 23 . Fabricators . | . . . Repair Stations 6 | . 6 . Recycling Units 5 | . 5 . Scanalyzers . | . . . Garrison Access . | . . . Terminal Hacks 9 | . 4 5 Record 4 | . . 4 Part Schematic 1 | . 1 . Robot Analysis 2 | . 2 . Prototype ID Bank 1 | . 1 . Derelict Proto ID Bank 1 | . . 1 Fabricator Hacks . | . . . Repair Station Hacks 3 | . 3 . Scan Component 1 | . 1 . Repair 1 | . 1 . Refit 1 | . 1 . Recycling Unit Hacks 2 | . 2 . Report Inventory 1 | . 1 . Retrieve Components 1 | . 1 . Scanalyzer . | . . . Garrison Access Hacks . | . . . Unauthorized Hacks 5 | . 5 . Terminals 5 | . 5 . Skim 5 | . 5 . Fabricators . | . . . Repair Stations . | . . . Recycling Units . | . . . Scanalyzers . | . . . Garrison Access . | . . . Data Cores Recovered . | . . . Used . | . . . Hacking Detections 9 | . 9 . Full Trace Events 1 | . 1 . Feedback Events . | . . . Feedback Blocked . | . . . Robot Schematics Acquired . | . . . Robots Built . | . . . Authchips . | . . . Time . | . . . Total Robot Build Rating . | . . . Part Schematics Acquired 1 | . 1 . Parts Built . | . . . Authchips . | . . . Time . | . . . Total Part Build Rating . | . . . Parts Repaired 1 | . 1 . Time 26 | . 26 . Parts Recycled . | . . . Recycled Matter . | . . . Retrieved Matter . | . . . Retrieved Components 9 | . 9 . Parts Scanalyzed . | . . . Part Schematics Acquired . | . . . Parts Damaged . | . . . Bothacking | -11 -10 -10 ------------ Run | Yrd Mat Sub Used RIF Installer . | . . . Robots Hacked . | . . . Non-combat . | . . . Combat . | . . . Robot Hacks Applied . | . . . Relay Couplers Released . | . . . Fabnet Peak Effective % . | . . . Robots Rewired . | . . . Allies Hacked . | . . . Hacks Repelled . | . . . Allies | -11 -10 -10 -------- Run | Yrd Mat Sub Total Allies . | . . . Largest Group . | . . . Highest-Rated Group . | . . . Highest-Rated Ally . | . . . Total Orders . | . . . Ally Attacks . | . . . Total Damage . | . . . Kills . | . . . Allies Corrupted . | . . . Allies Melted . | . . . Intel | -11 -10 -10 ------- Run | Yrd Mat Sub Robot Analysis Total 2 | . 2 . Derelict Logs Recovered 1 | . . 1 Drone Launches . | . . . Drone Recoveries . | . . . Exploration | -11 -10 -10 ------------- Run | Yrd Mat Sub Turns Passed 3673 | 115 1925 1633 Spaces Moved 1628 | 57 716 855 Core 4 | 4 . . Treads 105 | 53 30 22 Legs . | . . . Wheels 1519 | . 686 833 Hover . | . . . Flight . | . . . Fastest Speed 50 | 50 80 150 Average Speed 173 | 152 198 154 Slowest Speed 320 | 160 320 320 Overloaded Moves . | . . . Propulsion Burnouts . | . . . Robots Hopped . | . . . Cave-ins Triggered . | . . . Exploration Rate (%) 55 | 4 97 65 Regions Visited 2 Branch Regions 1 Pre-discovered Areas 2 | . 2 . Known Exits Taken 1 | . 1 . Unknown Exits Taken 1 | 1 . . Scrap Searched 8 | . . 8 Spaces Dug 3 | . . 3 Terrain Destroyed 40 | . 32 8 Melee . | . . . Projectile 8 | . . 8 AOE 32 | . 32 . Terrain Rammed . | . . . Walls Destroyed . | . . . Machines Disabled . | . . . Actions | -11 -10 -10 --------- Run | Yrd Mat Sub Total 2307 | 76 1116 1115 Wait 454 | 2 287 165 Move 1626 | 56 715 855 Hop . | . . . Pick Up 57 | 8 32 17 Fast Attach 13 | 7 2 4 Attach 6 | . 1 5 Detach 4 | . 3 1 Swap 16 | . 10 6 Drop 31 | . 6 25 Fire 100 | 3 60 37 Melee . | . . . Ram . | . . . Kick . | . . . Crush . | . . . Escape Stasis . | . . . Rewire . | . . . Trap . | . . . Miscellaneous . | . . . Route ------- -11/Scrapyard -10/Materials (discovered 5 exits: [*Mat x3] / [*Min] / *Sub) -10/Subcaves (discovered 3 exits: Mat x2 / Rec) History --------- Turn | Location | Event 8 | -11/Scrapyard | Discovered new exit (range 14) 116 | -11/Scrapyard | Entered Materials 302 | -10/Materials | Build established: Mutant 364 | -10/Materials | Repaired Huge Storage Unit 456 | -10/Materials | Discovered new exit (range 9) 688 | -10/Materials | Discovered new exit (range 11) 961 | -10/Materials | Discovered new exit (range 14) 1513 | -10/Materials | Discovered new exit (range 6) 1660 | -10/Materials | Learned 4 Recycling zone layouts 1736 | -10/Materials | Learned location of 2 exits from Mines 1737 | -10/Materials | Learned location of Mines (-10) 1742 | -10/Materials | Learned 4 Subcaves zone layouts 1779 | -10/Materials | Identified exit to Subcaves 2041 | -10/Materials | Entered Subcaves 2042 | -10/Subcaves | Identified exit to Materials 2042 | -10/Subcaves | Identified exit to Recycling 2104 | -10/Subcaves | Disturbed a concealed Subdweller 2114 | -10/Subcaves | Core integrity fell below 50% 2160 | -10/Subcaves | Lost 3 parts (1p2w) 2177 | -10/Subcaves | Core integrity fell below 20% 2399 | -10/Subcaves | Shifting Twisted Machinery released Sub. Power Source 2405 | -10/Subcaves | Shifting Twisted Machinery released Sub. Optics 2446 | -10/Subcaves | Visited Clippyterm 2493 | -10/Subcaves | Build established: Derelict-Mutant 3273 | -10/Subcaves | Visited 4L-MR0's lab 3290 | -10/Subcaves | Found Power Bank 3483 | -10/Subcaves | A swath of the cavern ceiling suddenly collapsed 3502 | -10/Subcaves | Learned Materials terminal intel 3540 | -10/Subcaves | Ambushed by Subdweller buried in earth 3674 | -10/Subcaves | Destroyed by VZ-EDL(R) with Subdweller Shrapnel Launcher Last Messages --------------- 03284_ Testing Chamber breached. 03286_ Dropped Wheel. 03287_ 4L-MR0 mumbles: "Who knows where that last prototype ended up, probably tossed aside somewhere as if it were useless junk..." 03290_ Acquired Power Bank. 03400_ Acquired 12 matter. 03442_ Acquired 21 matter. A swath of the cavern ceiling suddenly collapses. 03502_ Acquired derelict log, extracted data. Data stored: Materials terminal intel. 03540_ Slug penetrates Earth. 03541_ 4M-ZH9(R): "ARGHSUB!" 03546_ Critical hit (Destroy). 03548_ 4M-ZH9(R) destroyed. 03551_ Acquired 36 matter. 03563_ Sub. Monowheel shoots sparks and powers down. 03564_ Dropped Broken Sub. Monowheel. Map ----- +----------------------------------------------------+ | ???????????????## ##????## ## ### | | ????????????????#### ###??????# # | | ???????????????????# ##????????## ## | | ?????????????????# # #?????????## ### | | ?????????????????# # ##??????????# ### | | ?????????????????# ### ##?###??????# ### | | ?????????????????###### ### #?????## ### | | ??????????????????????## ## ####### ### | | ?????????????????????## ## ## | | ????????????????????## | | ???????????????????## | | ??????????????????## | | ?????????????????## ## | | ?????????????????# ## | | ????????????????# #??# | | ???????????????# ### ## #???## | | ??????????????# #??## ### ##????? | | ??????????????## #????## #?# ##?????? | | ???????????????### #??????# #?## ##??????? | | ?????????????????###???????# ##?# #???????? | | ???????????????????##????### #? ??????? | | ???????????????????# #??## ##? #?????? | | ???????????????????# ### ##??### ??????? | | ??????????????????## ##??????## ???????? | | ??????????????# ## ##?????????#???????? | | ??????????????# @ #??????????????????? | | ??????????????# ## #?????????????????? | | ??????????????# ?## ??????????????? | | ??????????????# ???# ??????????? | | ??????????????# R ??? ### #????????? | | ??????????????# ???? #??? ### #????????? | | ??????????????# ???# ???? ????????????? | | ??????????????## ????## #????#???????????? | | ???????????????# ?????# #????????????????? | | ???????????????# ??????## ????????????????? | | ???????????????# ???????? ????????????????? | | ???????????????# ????????? ## ???????????????? | | ???????????????#"????????? ##? ???????????????? | | ?????????????????????????? ???? ??????????????? | | ????????????????????????? ##?# ### ###### | | ?????????????????????????##?## ### ##???# | | ???????????????????????????## ### ##????# | | ???????????????????????????# ####?????## | | ???????????????????????????# ##???????# | | ???????????????????????????# ##??????? | | ???????????????????????????### #??????? | | ?????????????????????????????###########??????? | | ??????????????????????????????????????????????? | | ?????????????????????##########???????????????? | | ???????????????????##############?????????????? | +----------------------------------------------------+ Best States ------------- Heat Dissipation 25 Energy Generation 15 Energy Capacity 250 Matter Stores 300 Matter Capacity 300 Sight Range 16 Terrain Scan Range 16 Terrain Scan Density 10 Armor Coverage 100 Evasion (%) 40 Recoil Reduction 2 Item Schematics ----------------- Hcp. Storage Unit | -10/Materials | Hacked Robot Schematics ------------------ None Fabricated ------------ Nothing Alien Tech Used ----------------- None Achievements -------------- None Challenges ------------ None Game ------ Seed WarlordBraceCanceller Manual? 0 Play Time 00:22:53 Cumulative 481.6 hours Start 2024.08.19 @ 19:32:03 End 2024.08.19 @ 21:37:21 Sessions 2 Manual Loads 0 Difficulty Rogue Special Mode None Game No. 183 Rogue 180 Adventurer 3 Explorer 0 Win Type - Total 7 Types 4/1/0/1/0/1/0/0/0 Lore% 71 Gallery% 86 Achievement% 87 Wizard Run 0 Options --------- Layout 1 ASCII 0 Keyboard 0 Movement Numpad Keybinds 0 Fullscreen 2 Font 24/Smallcaps Map View 50x35 Zoom Use 0% Tactical HUD 1 Map Filters NONE Filters NONE Steam 1 RUN: 61752a57-29b5-4f0a-b2bb-b7f76bfa10d9